fUSD/lending_fUSD_20250117
["ID","MTS","AMOUNT","RATE_DAILY","PERIOD"]
[349292981,1737101445320,-578.81,0.00024999,2]
[349292983,1737101445330,-2433.74281,0.00024999,2]
[349292985,1737101445340,-500.0,0.00024999,2]
[349292987,1737101445349,-500.0,0.00024999,2]
[349292989,1737101445359,-500.0,0.00024999,2]
[349292991,1737101445370,-500.0,0.00024999,2]
[349292993,1737101445379,-500.0,0.00024999,2]
[349292995,1737101445388,-500.0,0.00024999,2]
[349292997,1737101445398,-500.0,0.00024999,2]
[349292999,1737101445408,-500.0,0.00024999,2]
[349293001,1737101445418,-500.0,0.00024999,2]
[349293003,1737101445427,-500.0,0.00024999,2]
[349293005,1737101445437,-500.41666326,0.00024999,2]
[349293007,1737101445446,-500.0,0.00024999,2]
[349293009,1737101445456,-500.0,0.00024999,2]
[349293011,1737101445465,-500.0,0.00024999,2]
[349293013,1737101445474,-500.0,0.00024999,2]
[349293015,1737101445484,-500.0,0.00024999,2]
[349293017,1737101445493,-220.78033268,0.00024999,2]
[349293019,1737101445502,-500.0,0.00024999,2]
[349293021,1737101445512,-500.0,0.00024999,2]
[349293023,1737101445521,-500.0,0.00024999,2]
[349293025,1737101445530,-500.0,0.00024999,2]
[349293027,1737101445539,-500.0,0.00024999,2]
[349293029,1737101445548,-500.0,0.00024999,2]
[349293031,1737101445557,-500.0,0.00024999,2]
[349293033,1737101445567,-500.0,0.00024999,2]
[349293035,1737101445576,-500.0,0.00024999,2]
[349293037,1737101445586,-500.0,0.00024999,2]
[349293039,1737101445596,-500.0,0.00024999,2]
[349293041,1737101445605,-500.0,0.00024999,2]
[349293043,1737101445615,-500.0,0.00024999,2]
[349293045,1737101445624,-500.0,0.00024999,2]
[349293047,1737101445634,-245.52,0.00024999,2]
[349293049,1737101445643,-500.0,0.00024999,2]
[349293051,1737101445653,-500.0,0.00024999,2]
[349293053,1737101445665,-500.0,0.00024999,2]
[349293055,1737101445674,-500.0,0.00024999,2]
[349293057,1737101445683,-500.0,0.00024999,2]
[349293059,1737101445692,-500.0,0.00024999,2]
[349293061,1737101445702,-500.0,0.00024999,2]
[349293063,1737101445710,-500.0,0.00024999,2]
[349293065,1737101445719,-500.0,0.00024999,2]
[349293067,1737101445729,-500.0,0.00024999,2]
[349293069,1737101445741,-500.0,0.00024999,2]
[349293071,1737101445750,-500.0,0.00024999,2]
[349293073,1737101445759,-500.0,0.00024999,2]
[349293075,1737101445768,-500.0,0.00024999,2]
[349293077,1737101445777,-500.0,0.00024999,2]
[349293079,1737101445787,-500.0,0.00024999,2]
[349293081,1737101445796,-500.0,0.00024999,2]
[349293083,1737101445804,-500.0,0.00024999,2]
[349293085,1737101445814,-500.0,0.00024999,2]
[349293087,1737101445823,-500.0,0.00024999,2]
[349293089,1737101445832,-181.82,0.00024999,2]
[349293091,1737101445841,-500.0,0.00024999,2]
[349293093,1737101445851,-467.71387465,0.00024999,2]
[349293095,1737101445859,-500.0,0.00024999,2]
[349293097,1737101445869,-294.44595289,0.00024999,2]
[349293099,1737101445878,-500.0,0.00024999,2]
[349293101,1737101445888,-487.09,0.00024999,2]
[349293103,1737101445897,-500.0,0.00024999,2]
[349293105,1737101445907,-500.0,0.00024999,2]
[349293107,1737101445916,-500.0,0.00024999,2]
[349293109,1737101445925,-500.0,0.00024999,2]
[349293111,1737101445935,-500.0,0.00024999,2]
[349293113,1737101445944,-500.0,0.00024999,2]
[349293115,1737101445953,-500.0,0.00024999,2]
[349293117,1737101445962,-443.419099,0.00024999,2]
[349293119,1737101445971,-310.33402615,0.00024999,2]
[349293120,1737101445980,-443.419099,0.00024999,2]
[349293122,1737101445989,-500.0,0.00024999,2]
[349293124,1737101445998,-500.0,0.00024999,2]
[349293126,1737101446007,-500.0,0.00024999,2]
[349293128,1737101446017,-500.0,0.00024999,2]
[349293130,1737101446027,-500.0,0.00024999,2]
[349293132,1737101446036,-547.04,0.00024999,2]
[349293134,1737101446046,-500.0,0.00024999,2]
[349293136,1737101446055,-500.0,0.00024999,2]
[349293139,1737101446065,-500.0,0.00024999,2]
[349293141,1737101446074,-500.0,0.00024999,2]
[349293143,1737101446083,-500.0,0.00024999,2]
[349293145,1737101446093,-500.0,0.00024999,2]
[349293147,1737101446102,-163.11689359,0.00024999,2]
[349293149,1737101446112,-500.0,0.00024999,2]
[349293151,1737101446121,-500.0,0.00024999,2]
[349293153,1737101446130,-500.0,0.00024999,2]
[349293155,1737101446140,-500.0,0.00024999,2]
[349293157,1737101446149,-500.0,0.00024999,2]
[349293160,1737101446159,-500.0,0.00024999,2]
[349293162,1737101446168,-500.0,0.00024999,2]
[349293164,1737101446177,-296.03483113,0.00024999,2]
[349293166,1737101446187,-331.075885,0.00024999,2]
[349293169,1737101446199,-331.075885,0.00024999,2]
[349293171,1737101446208,-500.0,0.00024999,2]
[349293173,1737101446218,-300.68,0.00024999,2]
[349293175,1737101446227,-500.0,0.00024999,2]
[349293177,1737101446237,-500.0,0.00024999,2]
[349293179,1737101446246,-500.0,0.00024999,2]
[349293181,1737101446256,-500.0,0.00024999,2]
[349293183,1737101446266,-500.0,0.00024999,2]
[349293185,1737101446276,-500.0,0.00024999,2]
[349293187,1737101446290,-226.18,0.00024999,2]
[349293189,1737101446300,-500.0,0.00024999,2]
[349293191,1737101446309,-500.0,0.00024999,2]
[349293193,1737101446319,-500.0,0.00024999,2]
[349293195,1737101446328,-500.0,0.00024999,2]
[349293197,1737101446337,-500.0,0.00024999,2]
[349293198,1737101446347,-500.0,0.00024999,2]
[349293201,1737101446358,-500.0,0.00024999,2]
[349293203,1737101446368,-500.0,0.00024999,2]
[349293205,1737101446378,-302.33,0.00024999,2]
[349293207,1737101446388,-151.0,0.00024999,7]
[349293209,1737101446397,-500.0,0.00024999,2]
[349293211,1737101446407,-200.26495218,0.00024999,2]
[349293213,1737101446417,-500.0,0.00024999,2]
[349293215,1737101446427,-500.0,0.00024999,2]
[349293217,1737101446436,-500.0,0.00024999,2]
[349293219,1737101446446,-507.09917656,0.00024999,2]
[349293221,1737101446455,-500.0,0.00024999,2]
[349293222,1737101446464,-500.0,0.00024999,2]
[349293224,1737101446473,-500.0,0.00024999,2]
[349293227,1737101446484,-500.0,0.00024999,2]
[349293229,1737101446497,-500.0,0.00024999,2]
[349293231,1737101446507,-500.0,0.00024999,2]
[349293232,1737101446517,-500.0,0.00024999,2]
[349293235,1737101446527,-500.0,0.00024999,2]
[349293237,1737101446536,-500.0,0.00024999,2]
[349293238,1737101446546,-500.0,0.00024999,2]
[349293240,1737101446556,-500.0,0.00024999,2]
[349293243,1737101446566,-542.29,0.00024999,2]
[349293245,1737101446575,-500.0,0.00024999,2]
[349293247,1737101446585,-500.0,0.00024999,2]
[349293248,1737101446594,-500.0,0.00024999,2]
[349293250,1737101446603,-500.0,0.00024999,2]
[349293252,1737101446613,-500.0,0.00024999,2]
[349293254,1737101446623,-500.0,0.00024999,2]
[349293257,1737101446632,-500.0,0.00024999,2]
[349293259,1737101446642,-500.0,0.00024999,2]
[349293261,1737101446651,-500.0,0.00024999,2]
[349293263,1737101446661,-500.0,0.00024999,2]
[349293264,1737101446670,-500.0,0.00024999,2]
[349293266,1737101446680,-500.0,0.00024999,2]
[349293269,1737101446690,-500.0,0.00024999,2]
[349293271,1737101446699,-500.0,0.00024999,2]
[349293273,1737101446708,-151.0,0.00024999,7]
[349293275,1737101446718,-565.13467516,0.00024999,2]
[349293277,1737101446727,-500.0,0.00024999,2]
[349293279,1737101446736,-500.0,0.00024999,2]
[349293281,1737101446745,-493.53713538,0.00024999,2]
[349293283,1737101446754,-500.0,0.00024999,2]
[349293285,1737101446763,-500.0,0.00024999,2]
[349293287,1737101446772,-500.0,0.00024999,2]
[349293288,1737101446781,-500.0,0.00024999,2]
[349293290,1737101446790,-500.0,0.00024999,2]
[349293292,1737101446799,-500.0,0.00024999,2]
[349293294,1737101446808,-500.0,0.00024999,2]
[349293296,1737101446817,-366.50826544,0.00024999,2]
[349293298,1737101446826,-500.0,0.00024999,2]
[349293301,1737101446835,-500.0,0.00024999,2]
[349293303,1737101446845,-500.0,0.00024999,2]
[349293305,1737101446854,-500.0,0.00024999,2]
[349293307,1737101446864,-500.0,0.00024999,2]
[349293309,1737101446873,-152.333875,0.00024999,7]
[349293311,1737101446882,-640.64509,0.00024999,7]
[349293313,1737101446891,-500.0,0.00024999,2]
[349293315,1737101446901,-500.0,0.00024999,2]
[349293317,1737101446911,-500.0,0.00024999,2]
[349293319,1737101446920,-500.0,0.00024999,2]
[349293321,1737101446929,-250.23,0.00024999,2]
[349293323,1737101446939,-500.0,0.00024999,2]
[349293325,1737101446948,-640.64509,0.00024999,7]
[349293327,1737101446957,-500.0,0.00024999,2]
[349293329,1737101446966,-500.0,0.00024999,2]
[349293331,1737101446975,-500.0,0.00024999,2]
[349293333,1737101446985,-500.0,0.00024999,2]
[349293335,1737101446994,-500.0,0.00024999,2]
[349293337,1737101447003,-500.0,0.00024999,2]
[349293339,1737101447012,-500.0,0.00024999,2]
[349293341,1737101447022,-500.0,0.00024999,2]
[349293343,1737101447032,-500.0,0.00024999,2]
[349293345,1737101447041,-500.0,0.00024999,2]
[349293347,1737101447050,-500.0,0.00024999,2]
[349293349,1737101447061,-500.0,0.00024999,2]
[349293350,1737101447071,-500.0,0.00024999,2]
[349293352,1737101447081,-500.0,0.00024999,2]
[349293354,1737101447091,-500.0,0.00024999,2]
[349293356,1737101447100,-500.0,0.00024999,2]
[349293359,1737101447110,-500.0,0.00024999,2]
[349293361,1737101447120,-500.0,0.00024999,2]
[349293363,1737101447129,-500.0,0.00024999,2]
[349293365,1737101447139,-500.0,0.00024999,2]
[349293367,1737101447148,-500.0,0.00024999,2]
[349293369,1737101447157,-500.0,0.00024999,2]
[349293371,1737101447168,-500.0,0.00024999,2]
[349293373,1737101447177,-500.0,0.00024999,2]
[349293375,1737101447187,-500.0,0.00024999,2]
[349293377,1737101447196,-500.0,0.00024999,2]
[349293379,1737101447205,-500.0,0.00024999,2]
[349293381,1737101447214,-500.0,0.00024999,2]
[349293382,1737101447223,-500.0,0.00024999,2]
[349293384,1737101447232,-500.0,0.00024999,2]
[349293386,1737101447242,-644.12,0.00024999,2]
[349293388,1737101447251,-500.0,0.00024999,2]
[349293391,1737101447261,-500.0,0.00024999,2]
[349293393,1737101447271,-500.0,0.00024999,2]
[349293395,1737101447284,-489.924492,0.00024999,7]
[349293397,1737101447294,-151.0,0.00024999,7]
[349293399,1737101447303,-416.39,0.00024999,2]
[349293401,1737101447312,-500.0,0.00024999,2]
[349293403,1737101447322,-489.924492,0.00024999,7]
[349293404,1737101447331,-263.13,0.00024999,2]
[349293407,1737101447341,-151.0,0.00024999,7]
[349293409,1737101447350,-500.0,0.00024999,2]
[349293410,1737101447360,-500.0,0.00024999,2]
[349293413,1737101447371,-500.0,0.00024999,2]
[349293414,1737101447380,-500.0,0.00024999,2]
[349293417,1737101447390,-500.0,0.00024999,2]
[349293418,1737101447399,-500.0,0.00024999,2]
[349293421,1737101447410,-500.0,0.00024999,2]
[349293423,1737101447419,-151.0,0.00024999,7]
[349293425,1737101447428,-500.0,0.00024999,2]
[349293426,1737101447438,-500.0,0.00024999,2]
[349293428,1737101447447,-152.82175675,0.00024999,2]
[349293431,1737101447457,-158.028263,0.00024999,7]
[349293433,1737101447467,-151.0,0.00024999,7]
[349293435,1737101447476,-355.71,0.00024999,2]
[349293437,1737101447486,-500.0,0.00024999,2]
[349293439,1737101447496,-500.0,0.00024999,2]
[349293440,1737101447505,-158.028263,0.00024999,7]
[349293443,1737101447514,-500.0,0.00024999,2]
[349293444,1737101447524,-500.0,0.00024999,2]
[349293446,1737101447533,-500.0,0.00024999,2]
[349293448,1737101447542,-500.0,0.00024999,2]
[349293450,1737101447551,-500.0,0.00024999,2]
[349293452,1737101447560,-572.95,0.00024999,2]
[349293454,1737101447569,-154.92358255,0.00024999,2]
[349293456,1737101447578,-2678539.50244338,0.00025,7]
[349293472,1737101447711,-544.38170658,0.00025,7]
[349293474,1737101447722,-852.99136144,0.00025,7]
[349293477,1737101447733,-1509.22856411,0.00025,7]
[349293479,1737101447743,-385.87238127,0.00025,7]
[349293481,1737101447757,-1383.91575475,0.00025,7]
[349293482,1737101447767,-561.18935367,0.00025,7]
[349293483,1737101447949,-918.7,0.00025,7]
[349293485,1737101447960,-1219.61553686,0.00025,7]
[349293487,1737101447971,-1562.911588,0.00025,7]
[349293489,1737101447983,-1049.83974746,0.00025,7]
[349293491,1737101447994,-651.0,0.00025,7]
[349293494,1737101448005,-462.71899519,0.00025,7]
[349293496,1737101448017,-8120.8,0.00025,7]
[349293498,1737101448028,-1297.29976271,0.00025,7]
[349293500,1737101448039,-4157.03998079,0.00025,7]
[349293503,1737101448054,-3578.50931283,0.00025,7]
[349293510,1737101448119,-16596.03911154,0.00025,7]
[349293513,1737101448132,-1860.30551926,0.00025,7]
[349293515,1737101448149,-2000.0,0.00025,7]
[349293517,1737101448162,-8020.0,0.00025,7]
[349293520,1737101448183,-652.519868,0.00025,7]
[349293526,1737101448229,-2205.04003108,0.00025,7]
[349293528,1737101448240,-321.33220666,0.00025,7]
[349293530,1737101448251,-170609.70360527,0.00025,7]
[349293532,1737101448261,-845569.94524333,0.00025,30]
[349293538,1737101448302,-621.22534204,0.00025,30]
[349293540,1737101448313,-1907.6248448,0.00025,30]
[349293543,1737101448325,-5441.13881107,0.00025,30]
[349293546,1737101448351,-6935.0000025,0.00025,30]
[349293549,1737101448365,-4057.8569,0.00025,30]
[349293551,1737101448378,-383.36,0.00025,30]
[349293554,1737101448394,-12864.32538664,0.00025,30]
[349293557,1737101448410,-411.59079741,0.00025,30]
[349293559,1737101448422,-2324.29556668,0.00025,30]
[349293561,1737101448434,-72519.06539137,0.00025,30]
[349293563,1737101448446,-7512.70143247,0.00025,30]
[349293566,1737101448459,-4794.10916932,0.00025,30]
[349293944,1737101865071,153.7,0.00010137,2]
[349293946,1737102320249,1073.13875602,9e-05,2]
[349293947,1737102337021,275.16771606,8e-05,2]
[349293948,1737102359648,1000.0,0.000121,2]
[349293951,1737102426139,-164.68,0.00012329,2]
[349293952,1737102426162,-947.19044334,0.00014888,2]
[349293954,1737102432095,-453.79691383,0.00014888,2]
[349293955,1737102432116,-1078.53746128,0.000154,2]
[349293956,1737102480275,26552.00488506,0.0001,2]
[349293957,1737102480306,3309.0,0.0001,2]
[349293958,1737102480333,3309.0,0.0001,2]
[349293959,1737102480360,3309.0,0.0001,2]
[349293960,1737102480385,201817.74720168,0.0001,2]
[349293963,1737102550096,-300.0,0.00015399,2]
[349293964,1737102550118,-7003.01916208,0.000154,2]
[349293965,1737102550140,-484.75276363,0.000154,2]
[349293966,1737102550162,-420.0,0.00016847,2]
[349293967,1737102550183,-587.0,0.0001843,2]
[349293968,1737102550204,-167.56,0.00019153,2]
[349293969,1737102550228,-2380.32176599,0.0002,4]
[349293970,1737102550248,-500.0,0.00020114,2]
[349293971,1737102550269,-7183.49020968,0.00020115,2]
[349293972,1737102550290,-823.0,0.00020163,2]
[349293973,1737102550312,-524.68,0.00021475,2]
[349293974,1737102550335,-1152.0,0.00022058,2]
[349293975,1737102550356,-153.7,0.00022822,2]
[349293997,1737102631482,-200.0,0.00023223,2]
[349293999,1737102631491,-397.07,0.00023346,2]
[349294000,1737102631501,-1009.0,0.000235,2]
[349294001,1737102631510,-17667.96779221,0.00023628,30]
[349294002,1737102635470,-477.688095,0.00023106,2]
[349294003,1737102635480,-9524.02194862,0.00023628,30]
[349294004,1737102635492,-1617.65264855,0.00023628,30]
[349294005,1737102635501,-431.3305861,0.00023628,3]
[349294006,1737102635511,-2000.0,0.00023628,2]
[349294007,1737102635521,-500.0,0.00023646,2]
[349294008,1737102635531,-200.0,0.00023658,2]
[349294009,1737102635540,-830.32,0.00023658,2]
[349294010,1737102635550,-501.0,0.00023726,2]
[349294011,1737102635560,-524.68,0.00023739,2]
[349294012,1737102635570,-2864.59,0.00023819,2]
[349294013,1737102635580,-250.0,0.00023876,2]
[349294014,1737102635590,-250.0,0.00023877,2]
[349294015,1737102635601,-201.74,0.00023929,2]
[349294016,1737102635611,-169.79,0.0002397,2]
[349294017,1737102635621,-1000.0,0.00023982,2]
[349294018,1737102635635,-19253.40763484,0.00024,7]
[349294020,1737102635647,-3262.1,0.00024,7]
[349294247,1737102637659,-4054.0929,0.00024,7]
[349294250,1737102637670,-6500.0,0.00024,7]
[349294255,1737102637685,-1191.23756533,0.00024,7]
[349294295,1737102637994,-3135.18136006,0.00024,7]
[349294297,1737102638006,-2416.9412,0.00024,7]
[349294300,1737102638022,-354.186,0.00024,7]
[349294302,1737102638032,-294.756,0.00024,7]
[349294304,1737102638043,-1485.22267318,0.00024,7]
[349294307,1737102638055,-31079.88864913,0.00024,7]
[349294309,1737102638064,-1000.0,0.00024657,14]
[349294311,1737102638073,-839.93261767,0.00024676,4]
[349294313,1737102638082,-150.0,0.00024737,2]
[349294315,1737102638091,-2028.11901,0.0002475,2]
[349294317,1737102638100,-500.0,0.00024799,2]
[349294319,1737102638109,-5800.0,0.00024823,2]
[349294320,1737102638118,-5800.0,0.00024832,2]
[349294322,1737102638127,-159.46586334,0.00024858,2]
[349294324,1737102638136,-159.46586331,0.00024865,2]
[349294326,1737102638146,-159.46586331,0.00024872,2]
[349294328,1737102638156,-500.0,0.00024873,2]
[349294331,1737102638166,-500.0,0.00024873,2]
[349294332,1737102638175,-159.46586331,0.00024879,2]
[349294334,1737102638184,-2368.508,0.00024883,8]
[349294336,1737102638193,-211.551,0.00024883,8]
[349294338,1737102638202,-159.46586331,0.00024886,2]
[349294340,1737102638211,-311.7496,0.0002489,2]
[349294342,1737102638220,-1000.0,0.0002489,2]
[349294344,1737102638230,-159.46586331,0.00024893,2]
[349294346,1737102638239,-1316.7947,0.000249,2]
[349294348,1737102638248,-2179.94745896,0.000249,2]
[349294483,1737102639639,-2820.05254104,0.000249,2]
[349294485,1737102639649,-139.59570073,0.000249,2]
[349294490,1737102639694,-14342.21836858,0.000249,2]
[349294493,1737102639706,-7469.93464728,0.000249,2]
[349294516,1737102639910,-21568.76811707,0.000249,2]
[349294799,1737102642480,-1499.61845701,0.000249,2]
[349294820,1737102642540,-1989.400493,0.000249,2]
[349294878,1737102642754,-453.18319028,0.000249,2]
[349295161,1737102645518,-461.27317459,0.000249,2]
[349295163,1737102645529,-2150.54505146,0.000249,2]
[349295165,1737102645538,-2274.26653222,0.000249,2]
[349295171,1737102645581,-1438.8500002,0.000249,2]
[349295173,1737102645592,-6382.55891473,0.000249,2]
[349295179,1737102645640,-1463.58095285,0.000249,2]
[349295181,1737102645655,-220.0,0.000249,2]
[349295183,1737102645664,-2928.0,0.000249,2]
[349295185,1737102645678,-205.82568142,0.000249,2]
[349295187,1737102645688,-159.46586331,0.000249,2]
[349295189,1737102645697,-232.1344097,0.000249,2]
[349295191,1737102645706,-521.3999819,0.000249,2]
[349295193,1737102645715,-486.79,0.00024931,14]
[349295195,1737102645725,-150.0,0.00024932,2]
[349295197,1737102645734,-150.57,0.00024932,2]
[349295199,1737102645743,-151.5,0.00024932,2]
[349295201,1737102645752,-748.38,0.00024932,2]
[349295203,1737102645761,-150.0,0.00024932,2]
[349295205,1737102645771,-437.34,0.00024932,2]
[349295207,1737102645781,-300.0,0.00024956,2]
[349295209,1737102645794,-500.0,0.00024958,2]
[349295211,1737102645803,-500.08956393,0.00024958,2]
[349295213,1737102645813,-500.0,0.00024958,2]
[349295215,1737102645822,-500.0,0.00024958,2]
[349295217,1737102645831,-500.0,0.00024958,2]
[349295219,1737102645841,-500.0,0.00024958,2]
[349295221,1737102645850,-500.0,0.00024958,2]
[349295223,1737102645860,-537.86,0.00024958,2]
[349295225,1737102645869,-500.0,0.00024958,2]
[349295227,1737102645878,-500.0,0.00024958,2]
[349295229,1737102645888,-378.73,0.00024958,2]
[349295231,1737102645897,-500.0,0.00024958,2]
[349295233,1737102645906,-500.0,0.00024958,2]
[349295235,1737102645919,-500.0,0.00024958,2]
[349295237,1737102645931,-500.0,0.00024958,2]
[349295239,1737102645943,-500.0,0.00024967,2]
[349295241,1737102645952,-500.0,0.00024967,2]
[349295243,1737102645961,-217.506298,0.00024967,2]
[349295245,1737102645971,-500.0,0.00024967,2]
[349295247,1737102645981,-500.0,0.00024967,2]
[349295249,1737102645991,-500.0,0.00024967,2]
[349295251,1737102646000,-500.0,0.00024967,2]
[349295253,1737102646009,-500.0,0.00024973,2]
[349295254,1737102646017,-500.0,0.00024989,2]
[349295255,1737102646026,-500.0,0.00024989,2]
[349295256,1737102646035,-500.0,0.00024989,2]
[349295257,1737102646044,-507.77,0.00024989,2]
[349295258,1737102646053,-500.0,0.00024989,2]
[349295259,1737102646061,-500.0,0.00024989,2]
[349295260,1737102646070,-500.0,0.00024989,2]
[349295261,1737102646079,-500.0,0.00024989,2]
[349295262,1737102646089,-314.74003409,0.00024989,2]
[349295263,1737102646098,-502.13864959,0.00024989,2]
[349295265,1737102646108,-500.0,0.00024989,2]
[349295266,1737102646117,-500.0,0.00024989,2]
[349295267,1737102646126,-500.0,0.00024989,2]
[349295269,1737102646135,-500.0,0.00024989,2]
[349295271,1737102646144,-577.34402924,0.00024989,2]
[349295273,1737102646154,-503.5652404,0.00024989,2]
[349295274,1737102646162,-500.0,0.00024989,2]
[349295275,1737102646174,-500.0,0.00024989,2]
[349295276,1737102646183,-500.0,0.00024989,2]
[349295277,1737102646193,-500.0,0.00024989,2]
[349295278,1737102646202,-389.83,0.0002499,2]
[349295279,1737102646211,-389.83,0.0002499,2]
[349295280,1737102646221,-389.83,0.0002499,2]
[349295281,1737102646230,-389.83,0.0002499,2]
[349295283,1737102646239,-389.83,0.0002499,2]
[349295285,1737102646248,-389.83,0.0002499,2]
[349295286,1737102646259,-389.83,0.0002499,2]
[349295288,1737102646268,-389.83,0.0002499,2]
[349295290,1737102646277,-389.83,0.0002499,2]
[349295292,1737102646287,-389.83,0.0002499,2]
[349295294,1737102646297,-389.83,0.0002499,2]
[349295296,1737102646306,-389.83,0.0002499,2]
[349295298,1737102646315,-389.83,0.0002499,2]
[349295300,1737102646325,-389.83,0.0002499,2]
[349295302,1737102646334,-389.83,0.0002499,2]
[349295304,1737102646343,-389.83,0.0002499,2]
[349295306,1737102646352,-389.83,0.0002499,2]
[349295308,1737102646361,-389.83,0.0002499,2]
[349295310,1737102646371,-389.83,0.0002499,2]
[349295312,1737102646380,-389.83,0.0002499,2]
[349295314,1737102646389,-389.83,0.0002499,2]
[349295316,1737102646399,-150.24798532,0.0002499,2]
[349295318,1737102646414,-239.58201468,0.0002499,2]
[349295320,1737102646427,-389.83,0.0002499,2]
[349295322,1737102646436,-121.1929785,0.0002499,2]
[349295325,1737102646456,-268.6370215,0.0002499,2]
[349295327,1737102646466,-389.83,0.0002499,2]
[349295329,1737102646475,-389.83,0.0002499,2]
[349295331,1737102646485,-389.83,0.0002499,2]
[349295333,1737102646494,-389.83,0.0002499,2]
[349295335,1737102646505,-389.83,0.0002499,2]
[349295337,1737102646514,-389.83,0.0002499,2]
[349295339,1737102646524,-389.83,0.0002499,2]
[349295341,1737102646535,-389.83,0.0002499,2]
[349295343,1737102646545,-389.83,0.0002499,2]
[349295345,1737102646555,-389.83,0.0002499,2]
[349295347,1737102646565,-389.83,0.0002499,2]
[349295349,1737102646575,-389.83,0.0002499,2]
[349295351,1737102646585,-389.83,0.0002499,2]
[349295353,1737102646595,-389.83,0.0002499,2]
[349295355,1737102646604,-389.83,0.0002499,2]
[349295357,1737102646614,-389.83,0.0002499,2]
[349295359,1737102646623,-389.83,0.0002499,2]
[349295360,1737102646634,-389.83,0.0002499,2]
[349295362,1737102646644,-389.83,0.0002499,2]
[349295364,1737102646656,-389.83,0.0002499,2]
[349295366,1737102646665,-389.83,0.0002499,2]
[349295369,1737102646679,-389.83,0.0002499,2]
[349295371,1737102646688,-389.83,0.0002499,2]
[349295372,1737102646697,-389.83,0.0002499,2]
[349295374,1737102646707,-389.83,0.0002499,2]
[349295376,1737102646717,-27.79643739,0.0002499,2]
[349295381,1737102646761,-362.03356261,0.0002499,2]
[349295382,1737102646770,-389.83,0.0002499,2]
[349295383,1737102646779,-389.83,0.0002499,2]
[349295384,1737102646788,-389.83,0.0002499,2]
[349295386,1737102646798,-10.21369011,0.0002499,2]
[349295388,1737102646809,-379.61630989,0.0002499,2]
[349295390,1737102646818,-389.83,0.0002499,2]
[349295391,1737102646827,-389.83,0.0002499,2]
[349295392,1737102646837,-389.83,0.0002499,2]
[349295393,1737102646846,-91.39139511,0.0002499,2]
[349295394,1737102646857,-298.43860489,0.0002499,2]
[349295395,1737102646867,-389.83,0.0002499,2]
[349295396,1737102646876,-389.83,0.0002499,2]
[349295397,1737102646885,-389.83,0.0002499,2]
[349295399,1737102646895,-242.70474885,0.0002499,2]
[349295401,1737102646910,-147.12525115,0.0002499,2]
[349295403,1737102646923,-389.83,0.0002499,2]
[349295405,1737102646932,-389.83,0.0002499,2]
[349295407,1737102646941,-389.83,0.0002499,2]
[349295408,1737102646951,-389.83,0.0002499,2]
[349295409,1737102646960,-389.83,0.0002499,2]
[349295410,1737102646970,-389.83,0.0002499,2]
[349295411,1737102646979,-389.83,0.0002499,2]
[349295412,1737102646988,-389.83,0.0002499,2]